bitfinex-derivatives/quotes_SOLF0:USTF0_20250831
["timestamp","ask_amount","ask_price","bid_price","bid_amount"]
[1756647683397,7.82,202.34,202.18,7.68]
[1756647683598,7.82,202.34,202.19,4.52826216]
[1756647683798,7.82,202.34,202.2,4.52826216]
[1756647684000,7.82,202.34,202.21,4.52826216]
[1756647684202,7.82,202.34,202.22,4.52826216]
[1756647684500,7.82,202.34,202.23,4.52826216]
[1756647684697,7.82,202.34,202.18,7.68]
[1756647684903,7.82,202.34,202.19,4.52923091]
[1756647685101,7.82,202.34,202.2,4.52923091]
[1756647685302,7.82,202.34,202.21,4.52923091]
[1756647685498,7.82,202.34,202.22,4.52923091]
[1756647685805,7.82,202.34,202.23,4.52923091]
[1756647686100,7.82,202.34,202.18,7.68]
[1756647686303,7.82,202.34,202.19,4.51730562]
[1756647686496,7.82,202.34,202.2,4.51730562]
[1756647686694,7.82,202.34,202.21,4.51730562]
[1756647686895,7.82,202.34,202.22,4.51730562]
[1756647687098,7.82,202.34,202.18,7.68]
[1756647687099,7.82,202.34,202.23,4.51730562]
[1756647687298,7.82,202.34,202.18,7.68]
[1756647687498,7.82,202.34,202.19,4.51949238]
[1756647687698,7.82,202.34,202.2,4.51949238]
[1756647687902,7.82,202.34,202.21,4.51949238]
[1756647688107,7.82,202.34,202.22,4.51949238]
[1756647688302,7.82,202.34,202.23,4.51949238]
[1756647688501,7.82,202.34,202.24,4.51949238]
[1756647688700,7.82,202.34,202.2,7.68]
[1756647688907,7.82,202.34,202.21,4.52138821]
[1756647689107,7.82,202.34,202.22,4.52138821]
[1756647689309,7.82,202.34,202.23,4.52138821]
[1756647689509,7.82,202.34,202.24,4.52138821]
[1756647689710,7.82,202.34,202.2,7.68]
[1756647690005,7.82,202.34,202.21,4.52334925]
[1756647690203,7.82,202.34,202.22,4.52334925]
[1756647690512,7.82,202.34,202.23,4.52334925]
[1756647690713,7.82,202.34,202.24,4.52334925]
[1756647690914,7.82,202.34,202.2,7.68]
[1756647691212,7.82,202.34,202.21,4.52553339]
[1756647691410,7.82,202.34,202.22,4.52553339]
[1756647691604,7.82,202.34,202.23,4.52553339]
[1756647691807,7.82,202.34,202.2,7.68]
[1756647691808,7.82,202.34,202.24,4.52553339]
[1756647692011,7.82,202.34,202.25,4.52553339]
[1756647692205,13.29760309,202.34,202.2,7.68]
[1756647692407,13.29760309,202.34,202.21,4.52974301]
[1756647692608,13.29760309,202.34,202.22,4.52974301]
[1756647692813,13.29760309,202.34,202.23,4.52974301]
[1756647693007,13.29760309,202.34,202.24,4.52974301]
[1756647693312,13.29760309,202.34,202.25,4.52974301]
[1756647693512,13.29760309,202.34,202.26,4.52974301]
[1756647693709,13.29760309,202.34,202.2,7.68]
[1756647693912,13.29760309,202.34,202.21,4.53293855]
[1756647694210,13.29760309,202.34,202.2,7.68]
[1756647694211,13.29760309,202.34,202.22,4.53293855]
[1756647694510,13.29760309,202.34,202.23,4.53293855]
[1756647694710,5.47760309,202.32,202.24,4.53293855]
[1756647695013,7.82,202.31,202.25,4.53477058]
[1756647695214,7.82,202.29,202.21,7.68]
[1756647695415,7.82,202.29,202.22,4.53588241]
[1756647695608,7.82,202.29,202.21,7.68]
[1756647695609,7.82,202.29,202.23,4.53588241]
[1756647695810,7.82,202.29,202.21,7.68]
[1756647696009,123.76,202.28,202.21,7.68]
[1756647700318,123.74,202.28,202.21,7.68]
[1756647701521,7.48,202.33,202.21,7.68]
[1756647701711,123.74,202.32,202.21,7.68]
[1756647705923,7.48,202.36,202.21,7.68]
[1756647706117,7.48,202.34,202.22,7.71]
[1756647709826,7.48,202.34,202.24,7.71]
[1756647710029,7.48,202.34,202.25,4.63998602]
[1756647710327,7.48,202.34,202.26,7.71]
[1756647710625,7.48,202.34,202.27,4.63998602]
[1756647710821,7.48,202.34,202.28,4.63998602]
[1756647711124,7.48,202.34,202.23,7.71]
[1756647711928,7.48,202.34,202.24,4.64000851]
[1756647712129,7.48,202.34,202.25,4.64000851]
[1756647712427,7.48,202.34,202.26,4.64000851]
[1756647712628,7.48,202.34,202.27,4.64000851]
[1756647712927,7.48,202.34,202.28,4.64000851]
[1756647713230,7.48,202.34,202.29,4.64003269]
[1756647713424,7.48,202.34,202.3,4.64003269]
[1756647713730,7.48,202.34,202.31,4.64003269]
[1756647713927,7.48,202.34,202.25,7.71]
[1756647714128,7.48,202.34,202.26,4.6398791]
[1756647714324,7.48,202.34,202.27,4.6398791]
[1756647714525,7.48,202.34,202.28,4.6398791]
[1756647714731,7.48,202.34,202.29,4.6398791]
[1756647715026,7.48,202.34,202.3,4.6398791]
[1756647715229,7.48,202.34,202.31,4.6398791]
[1756647715424,7.48,202.34,202.22,7.71]
[1756647715621,7.48,202.34,202.23,4.6398078]
[1756647715821,7.48,202.34,202.24,4.6398078]
[1756647716124,7.48,202.34,202.25,4.6398078]
[1756647716322,7.48,202.34,202.26,4.6398078]
[1756647716530,7.48,202.34,202.27,4.6398078]
[1756647716726,7.48,202.34,202.22,7.71]
[1756647716927,7.48,202.34,202.23,4.63985016]
[1756647717122,7.48,202.34,202.24,4.63985016]
[1756647717329,7.48,202.34,202.25,4.63985016]
[1756647717629,7.48,202.34,202.26,4.63985016]
[1756647717824,7.48,202.34,202.27,4.63985016]
[1756647718030,7.48,202.32,202.28,12.34985016]
[1756647718224,7.48,202.32,202.29,4.63985016]
[1756647718428,7.48,202.32,202.3,4.63985016]
[1756647718627,7.48,202.32,202.31,4.63985016]
[1756647720428,7.48,202.32,202.31,4.64253479]
[1756647722836,7.48,202.32,202.31,4.64359192]
[1756647723838,131.16,202.32,202.31,4.64359192]
[1756647724038,7.48,202.32,202.31,4.64359192]
[1756647724340,131.16,202.32,202.31,4.64359192]
[1756647724839,12.95760309,202.35,202.31,12.35359192]
[1756647725040,123.68,202.34,202.32,4.64359192]
[1756647725233,123.68,202.34,202.33,4.64359192]
[1756647725939,123.68,202.34,202.33,9.33403192]
[1756647727741,131.16,202.34,202.33,9.33403192]
[1756647731142,131.16,202.34,202.28,7.27]
[1756647731739,131.16,202.34,202.22,7.27]
[1756647733542,123.66,202.33,202.22,7.27]
[1756647736848,7.44,202.32,202.22,7.27]
[1756647742147,7.44,202.32,202.22,11.41209345]
[1756647742450,7.44,202.32,202.23,7.27]
[1756647749456,131.04,202.32,202.23,7.27]
[1756647750158,7.44,202.32,202.23,7.27]
[1756647751552,5.47760309,202.36,202.23,7.27]
[1756647751754,131.04,202.35,202.25,7.27]
[1756647751949,131.04,202.35,202.25,4.14209345]
[1756647752255,131.04,202.35,202.26,7.27]
[1756647752658,131.04,202.35,202.27,7.27]
[1756647753049,131.04,202.35,202.28,4.56195241]
[1756647753252,131.04,202.35,202.29,4.56195241]
[1756647753452,7.44,202.34,202.3,11.83195241]
[1756647753655,7.44,202.34,202.31,4.56195241]
[1756647753861,7.44,202.34,202.32,4.56195241]
[1756647754059,7.44,202.34,202.33,4.56195241]
[1756647755163,7.44,202.34,202.33,4.55782231]
[1756647756057,7.44,202.34,202.33,4.55776404]
[1756647757162,7.44,202.36,202.33,4.55776404]
[1756647757363,123.56,202.34,202.25,7.27]
[1756647757563,123.56,202.34,202.27,7.27]
[1756647757862,123.56,202.34,202.24,4.14209345]
[1756647757863,123.56,202.34,202.28,4.55745971]
[1756647758161,123.56,202.34,202.3,8.01]
[1756647758362,7.44,202.36,202.31,4.55745971]
[1756647758564,131.0,202.36,202.33,8.01]
[1756647758763,131.0,202.36,202.34,4.55745971]
[1756647758967,131.0,202.36,202.33,8.01]
[1756647758968,131.0,202.36,202.35,4.55745971]
[1756647760861,123.56,202.36,202.35,4.55745971]
[1756647764668,130.83,202.36,202.35,4.55745971]
[1756647765868,130.83,202.36,202.35,4.61694839]
[1756647766061,5.47760309,202.44,202.35,4.61694839]
[1756647766266,130.79,202.43,202.36,4.61694839]
[1756647766576,130.79,202.43,202.37,4.61694839]
[1756647766763,130.79,202.43,202.38,4.61638806]
[1756647766969,130.79,202.43,202.39,4.61638806]
[1756647767269,130.79,202.43,202.4,4.61638806]
[1756647767466,130.79,202.43,202.41,4.61638806]
[1756647767669,130.79,202.43,202.28,8.01]
[1756647767868,7.27,202.41,202.28,8.01]
[1756647778883,12.74760309,202.41,202.28,8.01]
[1756647779782,12.74760309,202.41,202.29,4.56832321]
[1756647779981,123.44,202.4,202.3,4.56832321]
[1756647780181,7.27,202.39,202.31,4.56832321]
[1756647780382,7.27,202.39,202.32,4.56832321]
[1756647780682,7.27,202.39,202.33,4.56832321]
[1756647780881,7.27,202.39,202.34,4.56832321]
[1756647781083,7.27,202.39,202.35,4.56832321]
[1756647781276,7.27,202.39,202.36,4.56832321]
[1756647781476,7.27,202.39,202.37,4.56832321]
[1756647781679,7.27,202.39,202.38,4.56832321]
[1756647782381,7.77,202.39,202.27,8.01]
[1756647782582,12.74760309,202.39,202.27,8.01]
[1756647783084,5.47760309,202.38,202.23,8.01]
[1756647783484,5.27,202.37,202.23,8.01]
[1756647783682,5.47760309,202.38,202.23,8.01]
[1756647783982,5.27,202.37,202.23,8.01]
[1756647784279,5.47760309,202.38,202.23,8.01]
[1756647784478,5.27,202.37,202.23,8.01]
[1756647784683,5.47760309,202.38,202.23,8.01]
[1756647784982,5.27,202.37,202.23,8.01]
[1756647785180,5.47760309,202.38,202.23,8.01]
[1756647785582,5.27,202.37,202.23,8.01]
[1756647786884,5.47760309,202.38,202.23,8.01]
[1756647787282,5.27,202.37,202.23,8.01]
[1756647788378,5.47760309,202.38,202.23,8.01]
[1756647788679,5.27,202.37,202.23,8.01]
[1756647788887,5.47760309,202.38,202.23,8.01]
[1756647789082,5.27,202.37,202.23,8.01]
[1756647789278,38.22,202.36,202.24,12.03209345]
[1756647789479,38.22,202.36,202.25,7.89]
[1756647789882,5.27,202.35,202.25,7.89]
[1756647793588,5.27,202.38,202.25,7.89]
[1756647793795,68.5,202.37,202.26,7.89]
[1756647794287,68.5,202.37,202.27,4.55446614]
[1756647794492,68.5,202.37,202.29,7.89]
[1756647794694,68.5,202.37,202.3,4.55446614]
[1756647794892,68.5,202.37,202.31,4.55446614]
[1756647795093,5.27,202.36,202.32,12.44446614]
[1756647795294,5.27,202.36,202.33,12.44446614]
[1756647795495,5.27,202.36,202.34,4.55446614]
[1756647795695,68.5,202.37,202.35,4.55446614]
[1756647795893,68.5,202.37,202.36,4.55446614]
[1756647796498,73.77,202.37,202.36,4.55446614]
[1756647796997,73.77,202.37,202.31,7.89]
[1756647797198,73.77,202.37,202.32,4.55565788]
[1756647797398,73.77,202.37,202.33,12.44565788]
[1756647797596,73.77,202.37,202.34,4.55565788]
[1756647797794,5.27,202.36,202.35,4.55565788]
[1756647799999,73.77,202.37,202.35,4.55565788]
[1756647800200,73.77,202.37,202.36,4.55565788]
[1756647803707,68.5,202.37,202.36,4.55565788]
[1756647804097,68.5,202.37,202.36,12.44565788]
[1756647804402,68.5,202.37,202.36,4.55565788]
[1756647804604,73.78,202.37,202.36,4.55565788]
[1756647806001,68.5,202.37,202.36,4.55565788]
[1756647807005,337.52,202.41,202.36,12.44565788]
[1756647807298,123.32,202.4,202.37,12.44565788]
[1756647807497,123.32,202.4,202.38,4.55565788]
[1756647807698,123.32,202.4,202.39,4.75229537]
[1756647807904,337.52,202.41,202.39,4.75229537]
[1756647808103,337.52,202.41,202.4,4.75229537]
[1756647808403,455.56,202.41,202.4,12.64229537]
[1756647809510,332.24,202.41,202.4,12.64229537]
[1756647809704,455.56,202.41,202.4,12.64229537]
[1756647809900,123.32,202.41,202.4,12.64229537]
[1756647812905,123.28,202.43,202.41,7.89]
[1756647813105,123.28,202.43,202.42,4.75229537]
[1756647814513,128.56,202.43,202.42,4.75229537]
[1756647818411,128.56,202.43,202.42,4.63200605]
[1756647822018,128.56,202.43,202.25,5.55203979]
[1756647822019,129.06,202.43,202.27,4.14209345]
[1756647822219,123.28,202.43,202.29,7.28]
[1756647822513,123.28,202.43,202.27,4.14209345]
[1756647822514,123.28,202.43,202.31,7.28]
[1756647822719,5.27,202.42,202.32,4.63169277]
[1756647822920,5.27,202.42,202.33,4.63169277]
[1756647823117,5.27,202.42,202.34,4.63169277]
[1756647823318,5.27,202.42,202.35,4.63169277]
[1756647823519,5.27,202.42,202.36,4.63169277]
[1756647823719,5.27,202.42,202.37,4.63169277]
[1756647823913,5.27,202.42,202.38,4.63169277]
[1756647824216,5.27,202.42,202.39,4.63169277]
[1756647824416,123.28,202.43,202.4,4.63169277]
[1756647824616,5.27,202.42,202.41,4.63169277]
[1756647825419,128.49,202.42,202.36,7.28]
[1756647825720,128.49,202.42,202.38,7.28]
[1756647825913,128.49,202.42,202.39,4.63171395]
[1756647826115,128.49,202.42,202.4,4.63171395]
[1756647826316,128.49,202.42,202.41,4.63171395]
[1756647831022,128.49,202.42,202.31,7.28]
[1756647831023,0.64,202.41,202.31,7.28]
[1756647831621,124.08017253,202.42,202.31,7.28]
[1756647832015,0.64,202.41,202.31,7.28]
[1756647832222,124.08017253,202.42,202.31,7.28]
[1756647832421,0.64,202.41,202.31,7.28]
[1756647832822,124.08017253,202.42,202.31,7.28]
[1756647833022,0.64,202.41,202.31,7.28]
[1756647834123,124.08017253,202.42,202.31,7.28]
[1756647834620,0.64,202.41,202.31,7.28]
[1756647834925,124.08017253,202.42,202.31,7.28]
[1756647835120,0.64,202.41,202.31,7.28]
[1756647835525,0.86017253,202.42,202.31,7.28]
[1756647835727,0.64,202.4,202.31,7.28]
[1756647836927,123.16,202.39,202.31,7.28]
[1756647840524,0.64,202.38,202.31,7.28]
[1756647841824,0.64,202.38,202.27,7.28]
[1756647842725,124.02035329,202.39,202.27,7.28]
[1756647842919,0.64,202.38,202.27,7.28]
[1756647843521,32.18,202.37,202.27,7.28]
[1756647843826,62.76,202.36,202.27,7.28]
[1756647848833,0.64,202.35,202.27,7.28]
[1756647855235,62.76,202.36,202.27,7.28]
[1756647855434,0.64,202.35,202.27,7.28]
[1756647856441,85.06,202.34,202.27,7.28]
[1756647859739,0.64,202.33,202.27,7.28]
[1756647861233,0.64,202.33,202.23,7.64]
[1756647864140,106.5,202.33,202.23,7.64]
[1756647873251,106.5,202.33,202.23,11.79547662]
[1756647873450,106.5,202.33,202.24,7.64]
[1756647874051,0.64,202.32,202.24,7.64]
[1756647877544,105.86,202.33,202.24,7.64]
[1756647877745,0.65,202.32,202.24,7.64]
[1756647882759,123.63,202.35,202.24,7.64]
[1756647883259,123.63,202.35,202.24,11.79547662]
[1756647883447,123.63,202.35,202.25,7.76]
[1756647883646,123.63,202.35,202.25,4.15547662]
[1756647883956,123.63,202.35,202.26,7.76]
[1756647884657,0.65,202.39,202.28,4.15547662]
[1756647884865,0.65,202.39,202.29,11.91547662]
[1756647885161,0.65,202.39,202.3,7.76]
[1756647887258,0.65,202.39,202.31,7.76]
[1756647887453,332.2,202.41,202.31,7.76]
[1756647891565,0.65,202.4,202.31,7.76]
[1756647896963,455.06,202.41,202.31,7.76]
[1756647898964,0.65,202.47,202.32,4.15547662]
[1756647899159,0.65,202.47,202.34,11.91547662]
[1756647899358,0.65,202.47,202.34,7.76]
[1756647900357,23.86,202.48,202.34,7.76]
[1756647900568,0.65,202.47,202.34,7.76]
[1756647904374,0.65,202.48,202.34,7.76]
[1756647904571,46.46,202.49,202.34,7.76]
[1756647904772,0.65,202.48,202.34,7.76]
[1756647905873,0.65,202.48,202.34,4.14592021]
[1756647906072,0.65,202.48,202.35,7.76]
[1756647907484,23.26,202.51,202.35,7.76]
[1756647907681,23.91,202.51,202.35,7.76]
[1756647912393,23.91,202.51,202.36,7.52]
[1756647912691,0.65,202.51,202.36,7.52]
[1756647912891,0.65,202.51,202.37,7.52]
[1756647913792,0.65,202.51,202.37,11.66592021]
[1756647913992,0.65,202.51,202.37,7.52]
[1756647914192,0.65,202.51,202.39,7.52]
[1756647914593,0.64,202.52,202.39,7.52]
[1756647915092,332.16,202.53,202.39,7.52]
[1756647915294,0.64,202.52,202.39,7.52]
[1756647915489,332.16,202.53,202.39,7.52]
[1756647915988,0.64,202.52,202.39,7.52]
[1756647916792,332.16,202.53,202.39,7.52]
[1756647917294,333.01980062,202.53,202.34,7.52]
[1756647917595,0.64,202.52,202.34,7.52]
[1756647917794,333.01980062,202.53,202.34,7.52]
[1756647917995,0.64,202.52,202.34,7.52]
[1756647918295,333.01980062,202.53,202.34,7.52]
[1756647918495,0.64,202.52,202.34,7.52]
[1756647918689,333.01980062,202.53,202.34,7.52]
[1756647919090,0.64,202.52,202.34,7.52]
[1756647919290,333.01980062,202.53,202.34,7.52]
[1756647919489,0.64,202.52,202.34,7.52]
[1756647919894,0.64,202.52,202.36,4.14592021]
[1756647920098,0.64,202.52,202.37,4.14592021]
[1756647920294,5.47760309,202.64,202.38,11.66592021]
[1756647920498,122.66,202.63,202.4,7.52]
[1756647920697,0.64,202.62,202.41,7.52]
[1756647920992,123.51948209,202.63,202.41,7.52]
[1756647921502,0.64,202.62,202.41,7.52]
[1756647922094,123.51948209,202.63,202.41,7.52]
[1756647923000,0.64,202.62,202.41,7.52]
[1756647923202,0.85948209,202.63,202.41,7.52]
[1756647923398,0.64,202.61,202.41,7.52]
[1756647923895,122.64,202.62,202.41,7.52]
[1756647924603,0.64,202.6,202.41,7.52]
[1756647924897,122.64,202.59,202.41,4.12925266]
[1756647925095,0.64,202.57,202.42,6.28]
[1756647925302,41.22,202.57,202.43,7.52]
[1756647926893,0.64,202.56,202.43,7.52]
[1756647931603,0.64,202.56,202.44,7.52]
[1756647931910,0.64,202.59,202.44,7.52]
[1756647932107,0.64,202.59,202.44,11.64925266]
[1756647932406,0.64,202.59,202.45,7.52]
[1756647933805,0.64,202.62,202.45,7.52]
[1756647934205,0.64,202.62,202.45,11.64925266]
[1756647934406,0.64,202.62,202.46,7.52]
[1756647935800,0.64,202.62,202.46,11.64925266]
[1756647936005,0.64,202.62,202.47,7.52]
[1756647937811,0.64,202.62,202.48,7.77]
[1756647938010,0.63,202.62,202.48,7.77]
[1756647939310,33.94,202.63,202.48,7.77]
[1756647939813,0.63,202.62,202.48,7.77]
[1756647940514,33.94,202.63,202.48,7.77]
[1756647940914,0.63,202.62,202.48,7.77]
[1756647941415,33.94,202.63,202.48,7.77]
[1756647941611,0.63,202.62,202.48,7.77]
[1756647942014,33.94,202.63,202.48,7.77]
[1756647942314,0.63,202.62,202.48,7.77]
[1756647942512,33.94,202.63,202.48,7.77]
[1756647943117,0.63,202.62,202.48,7.77]
[1756647943318,33.94,202.63,202.48,7.77]
[1756647944213,0.63,202.62,202.42,11.89807159]
[1756647944416,33.94,202.63,202.43,7.77]
[1756647944717,0.85936535,202.64,202.43,7.77]
[1756647944913,0.63,202.61,202.43,7.77]
[1756647945313,122.54,202.62,202.43,7.77]
[1756647946320,0.63,202.61,202.43,7.77]
[1756647946520,122.54,202.62,202.43,7.77]
[1756647947012,0.63,202.61,202.43,7.77]
[1756647947212,122.54,202.62,202.43,7.77]
[1756647948020,0.63,202.61,202.43,7.77]
[1756647948320,122.54,202.62,202.43,7.77]
[1756647948917,0.63,202.61,202.43,7.77]
[1756647949221,122.54,202.62,202.43,7.77]
[1756647949423,0.63,202.61,202.43,7.77]
[1756647949820,122.54,202.62,202.43,7.77]
[1756647950215,0.63,202.61,202.43,7.77]
[1756647950421,122.54,202.62,202.43,7.77]
[1756647950621,0.63,202.61,202.43,7.77]
[1756647951022,122.54,202.62,202.43,7.77]
[1756647951223,0.63,202.61,202.43,7.77]
[1756647951525,122.54,202.62,202.43,7.77]
[1756647951826,122.52,202.61,202.43,7.77]
[1756647952021,0.63,202.6,202.43,7.77]
[1756647952221,122.52,202.61,202.43,7.77]
[1756647953627,0.63,202.57,202.43,7.77]
[1756647953823,5.47760309,202.58,202.43,7.77]
[1756647954024,0.63,202.57,202.43,7.77]
[1756647954528,5.47760309,202.58,202.43,7.77]
[1756647954730,0.63,202.57,202.43,7.77]
[1756647954924,5.47760309,202.58,202.43,7.77]
[1756647955628,0.63,202.57,202.43,7.77]
[1756647955828,5.47760309,202.58,202.43,7.77]
[1756647956032,5.47760309,202.57,202.43,7.77]
[1756647956928,0.63,202.55,202.43,7.77]
[1756647957227,0.63,202.53,202.43,7.77]
[1756647958030,1.72,202.52,202.43,7.77]
[1756647958430,3.14,202.51,202.43,7.77]
[1756647959632,3.77,202.51,202.43,7.77]
[1756647961633,0.63,202.51,202.43,7.77]
[1756647967539,1.48,202.53,202.43,7.77]
[1756647968235,0.65,202.54,202.43,7.77]
[1756647968544,13.27,202.54,202.43,7.77]
[1756647969236,0.65,202.54,202.43,7.77]
[1756647969436,0.64,202.59,202.43,7.77]
[1756647969740,52.3,202.58,202.43,7.77]
[1756647969938,0.64,202.59,202.43,7.77]
[1756647970140,72.22,202.58,202.43,7.77]
[1756647970343,0.64,202.59,202.43,7.77]
[1756647970539,0.64,202.59,202.45,7.46]
[1756647970738,331.92,202.6,202.47,4.12807159]
[1756647970939,331.92,202.6,202.48,7.46]
[1756647971145,331.92,202.6,202.5,7.46]
[1756647971437,331.92,202.6,202.52,7.46]
[1756647971642,331.92,202.6,202.54,7.46]
[1756647971841,331.92,202.6,202.55,4.57536849]
[1756647972144,0.64,202.63,202.57,7.46]
[1756647972447,0.64,202.63,202.59,7.46]
[1756647972639,0.64,202.63,202.6,4.57536849]
[1756647972837,0.64,202.63,202.61,4.57536849]
[1756647973037,0.64,202.63,202.62,4.57536849]
[1756647973742,123.18,202.64,202.62,4.57536849]
[1756647973942,123.18,202.64,202.63,4.57536849]
[1756647974245,123.18,202.64,202.59,7.46]
[1756647974439,123.18,202.64,202.6,4.57277414]
[1756647974641,123.18,202.64,202.61,4.57277414]
[1756647974842,123.18,202.64,202.62,4.57277414]
[1756647975032,123.18,202.64,202.63,4.57277414]
[1756647976344,337.39760309,202.72,202.63,4.57277414]
[1756647976541,0.64,202.7,202.64,4.57074817]
[1756647976738,122.52,202.71,202.59,7.46]
[1756647976938,0.64,202.7,202.6,4.57066849]
[1756647977141,122.52,202.71,202.61,4.57066849]
[1756647977341,122.52,202.71,202.62,4.57066849]
[1756647977536,0.64,202.7,202.63,4.57066849]
[1756647977736,0.64,202.7,202.64,4.57066849]
[1756647977946,0.64,202.7,202.61,7.46]
[1756647978148,0.64,202.7,202.62,4.5698816]
[1756647978346,0.64,202.7,202.63,4.5698816]
[1756647978540,122.52,202.71,202.64,4.5698816]
[1756647978742,0.64,202.7,202.57,7.46]
[1756647979046,122.52,202.71,202.58,4.56917221]
[1756647979242,0.64,202.7,202.59,4.56917221]
[1756647979443,0.64,202.7,202.6,4.56917221]
[1756647979746,0.64,202.7,202.61,4.56917221]
[1756647979949,122.52,202.71,202.62,4.56917221]
[1756647980144,0.64,202.7,202.63,4.56917221]
[1756647980445,122.52,202.71,202.57,7.46]
[1756647980644,0.64,202.7,202.58,4.56797674]
[1756647980846,0.64,202.7,202.59,4.56797674]
[1756647981050,122.52,202.71,202.6,4.56797674]
[1756647981243,122.52,202.71,202.61,4.56797674]
[1756647981438,0.64,202.7,202.62,4.56797674]
[1756647981644,122.52,202.71,202.63,4.56797674]
[1756647981849,0.64,202.7,202.6,7.46]
[1756647982052,122.52,202.71,202.61,4.56763186]
[1756647982246,0.64,202.7,202.62,4.56763186]
[1756647982451,122.52,202.71,202.63,4.56763186]
[1756647982651,122.52,202.71,202.6,7.46]
[1756647982953,122.52,202.71,202.61,4.56729678]
[1756647983152,122.52,202.71,202.62,4.56729678]
[1756647983444,0.64,202.7,202.63,4.56729678]
[1756647983649,0.64,202.7,202.62,7.46]
[1756647983852,0.64,202.7,202.63,4.56681438]
[1756647984051,0.64,202.7,202.62,7.46]
[1756647984253,0.64,202.7,202.63,4.56675757]
[1756647984552,0.61,202.7,202.5,7.46]
[1756647984753,0.61,202.7,202.52,7.46]
[1756647984952,0.61,202.7,202.54,7.46]
[1756647985152,0.61,202.7,202.56,7.46]
[1756647985348,0.61,202.7,202.58,7.46]
[1756647985652,0.61,202.7,202.6,7.46]
[1756647985951,0.61,202.7,202.61,4.56643114]
[1756647986253,0.61,202.7,202.62,12.02643114]
[1756647986453,0.61,202.7,202.63,4.56643114]
[1756647986754,0.61,202.7,202.64,4.56643114]
[1756647987052,123.13,202.71,202.65,4.56643114]
[1756647987250,123.13,202.71,202.63,7.46]
[1756647987453,123.13,202.71,202.64,4.56067658]
[1756647987648,123.13,202.71,202.65,4.56067658]
[1756647987850,0.61,202.7,202.66,4.55971668]
[1756647988050,0.61,202.7,202.64,7.46]
[1756647988251,0.61,202.7,202.66,7.46]
[1756647988556,0.61,202.7,202.67,4.55927976]
[1756647988756,0.61,202.7,202.66,7.46]
[1756647988956,0.61,202.7,202.67,4.55739871]
[1756647989156,122.46,202.69,202.66,7.46]
[1756647989359,122.46,202.69,202.67,4.55580438]
[1756647989550,122.46,202.69,202.66,7.46]
[1756647989751,122.46,202.69,202.67,4.55580438]
[1756647990054,122.46,202.69,202.66,7.46]
[1756647990256,0.61,202.68,202.53,7.46]
[1756647990456,0.61,202.68,202.55,7.46]
[1756647990656,0.61,202.68,202.57,7.46]